bitfinex/quotes_ETHUSD_20250722
["timestamp","ask_amount","ask_price","bid_price","bid_amount"]
[1753151010131,0.4377,3785.2,3784.5,2.64233135]
[1753151010363,0.4377,3785.2,3784.6,0.02642287]
[1753151010530,0.4377,3785.2,3784.6,0.70750652]
[1753151010729,0.4377,3785.2,3784.4,4.142]
[1753151010932,0.4377,3785.2,3784.6,2.64227255]
[1753151011147,0.7908,3785.4,3784.8,2.64208897]
[1753151011447,0.7908,3785.4,3784.9,0.02642077]
[1753151011627,0.7908,3785.4,3784.5,2.64233124]
[1753151011826,1.2285,3785.4,3784.6,1.02226312]
[1753151012032,0.45741921,3785.3,3784.6,1.02226312]
[1753151012215,0.65423929,3785.3,3784.6,1.02226312]
[1753151012718,0.65423929,3785.3,3784.6,3.66454024]
[1753151013125,0.65423929,3785.3,3784.7,2.64221232]
[1753151013324,0.19682008,3785.3,3784.7,1.34488826]
[1753151013577,0.7908,3785.4,3784.8,0.02642147]
[1753151013723,0.7908,3785.4,3784.5,2.64229035]
[1753151013917,3.09927921,3785.3,3784.4,9.78441762]
[1753151014119,0.4377,3785.2,3784.5,3.62073656]
[1753151014524,0.4377,3785.2,3784.7,2.64218856]
[1753151014827,0.4377,3785.2,3784.8,2.6421352]
[1753151015035,0.4377,3785.2,3784.5,0.97844176]
[1753151015252,0.4377,3785.2,3784.7,2.64215166]
[1753151015450,0.4377,3785.2,3784.8,2.64213177]
[1753151016050,0.4377,3785.1,3784.8,2.64213177]
[1753151016260,0.20280173,3785.3,3784.5,0.97844176]
[1753151016553,0.20280173,3785.3,3784.0,0.6351]
[1753151016554,0.4377,3785.0,3784.4,4.138]
[1753151016747,0.4377,3785.0,3784.5,2.64235602]
[1753151017122,0.4377,3784.9,3784.4,6.78041462]
[1753151017365,0.4377,3784.9,3784.5,2.64235648]
[1753151017663,0.4377,3784.9,3784.5,2.64234744]
[1753151018039,0.4377,3784.9,3784.6,2.64227918]
[1753151018560,0.21339409,3785.3,3784.4,4.138]
[1753151018761,0.4377,3784.8,3784.4,4.138]
[1753151018948,0.01971921,3785.1,3784.4,4.138]
[1753151019256,0.4377,3785.2,3784.8,2.64207904]
[1753151019458,0.7908,3785.4,3785.0,0.132]
[1753151019662,0.7908,3785.4,3785.1,2.64193812]
[1753151019960,0.7908,3785.4,3785.3,0.132]
[1753151020161,0.8103,3785.7,3785.4,2.64172874]
[1753151020361,0.827,3786.1,3785.5,0.30643132]
[1753151020525,0.827,3786.1,3785.6,0.132]
[1753151020861,0.827,3786.1,3786.0,0.132]
[1753151021057,1.02328944,3786.1,3786.0,0.132]
[1753151021448,1.46098944,3786.1,3786.0,0.132]
[1753151021625,1.02328944,3786.1,3786.0,0.132]
[1753151022440,0.19628944,3786.1,3786.0,0.132]
[1753151022651,0.4377,3786.1,3786.0,0.132]
[1753151023370,0.45741921,3786.1,3785.4,4.134]
[1753151023585,0.7531,3786.0,3785.8,0.132]
[1753151023792,2.6416144,3785.6,3784.7,2.64216575]
[1753151023948,2.6416144,3785.6,3785.5,0.132]
[1753151024276,2.64184306,3785.3,3784.8,4.134]
[1753151024570,3.09930014,3785.2,3785.1,0.132]
[1753151024770,3.84968093,3785.2,3783.9,0.6351]
[1753151024934,0.4377,3785.1,3784.1,4.134]
[1753151025134,0.4377,3785.1,3783.8,2.64282616]
[1753151025135,0.7701,3784.5,3783.9,4.134]
[1753151025331,3.85016185,3784.5,3784.4,0.132]
[1753151025772,1.2078,3784.5,3784.4,0.132]
[1753151026779,0.7701,3784.5,3784.4,0.132]
[1753151026934,0.8005,3784.9,3784.4,0.132]
[1753151027366,0.8005,3784.9,3784.6,2.64228716]
[1753151027670,1.2444,3785.3,3784.8,0.132]
[1753151027892,0.01971921,3785.2,3784.8,0.132]
[1753151028053,0.46361921,3785.2,3784.6,0.57464055]
[1753151028367,0.01971921,3785.2,3785.1,0.132]
[1753151028537,0.46361921,3785.2,3785.1,0.132]
[1753151028732,3.10548753,3785.2,3785.1,0.132]
[1753151028936,0.757,3784.6,3783.6,2.64292923]
[1753151029164,0.757,3784.6,3784.0,4.131]
[1753151029165,2.64237512,3784.5,3784.0,4.131]
[1753151029524,0.4439,3784.4,3784.0,4.131]
[1753151029653,2.6424385,3784.4,3784.0,4.131]
[1753151029855,0.4439,3784.3,3784.0,4.131]
[1753151030300,0.757,3784.6,3784.2,0.132]
[1753151030653,0.77671921,3784.6,3784.0,4.131]
[1753151030858,3.41900637,3784.6,3784.5,0.132]
[1753151031161,2.64270613,3784.0,3783.4,4.128]
[1753151031360,3.39390613,3784.0,3783.4,4.128]
[1753151031560,3.39390613,3784.0,3783.9,0.133]
[1753151031894,1.1951,3784.0,3783.9,0.133]
[1753151032262,3.83780613,3784.0,3783.9,0.133]
[1753151032663,1.1951,3784.0,3783.9,0.133]
[1753151033003,4.0399884,3784.0,3783.9,0.133]
[1753151033681,4.0399884,3784.0,3783.9,0.001]
[1753151034060,4.5899884,3784.0,3783.9,0.001]
[1753151034393,8.7179884,3784.0,3783.9,0.001]
[1753151035094,4.5899884,3784.0,3783.9,0.001]
[1753151035273,8.73970761,3784.0,3783.9,0.001]
[1753151035603,8.7199884,3784.0,3783.9,0.001]
[1753151040110,4.5899884,3784.0,3783.9,0.001]
[1753151040278,8.31570761,3784.0,3783.9,0.001]
[1753151040476,8.2959884,3784.0,3783.9,0.001]
[1753151040998,8.8459884,3784.0,3783.9,0.001]
[1753151041613,4.7219884,3784.0,3783.9,0.001]
[1753151041813,8.86570761,3784.0,3783.9,0.001]
[1753151042019,8.8459884,3784.0,3783.9,0.001]
[1753151042820,11.8459884,3784.0,3783.9,1e-08]
[1753151043017,4.01726496,3783.2,3783.1,0.001]
[1753151043234,8.14026496,3783.2,3783.1,0.001]
[1753151043407,8.58416496,3783.2,3783.1,0.001]
[1753151044321,4.46116496,3783.2,3783.1,0.001]
[1753151044626,4.48088417,3783.2,3783.1,0.001]
[1753151044785,0.84371921,3783.2,3783.1,0.001]
[1753151044988,4.124,3783.2,3783.1,0.001]
[1753151045287,4.125,3783.2,3783.1,0.001]
[1753151045485,0.01971921,3783.4,3783.1,0.001]
[1753151045711,4.125,3783.2,3783.1,0.001]
[1753151046933,7.23188417,3783.2,3783.1,0.001]
[1753151047237,7.21216496,3783.2,3783.1,0.001]
[1753151047402,8.67166496,3783.2,3783.1,0.001]
[1753151051424,11.67166496,3783.2,3783.1,0.001]
[1753151051625,3.97012402,3782.4,3782.3,0.001]
[1753151051834,8.09012402,3782.4,3782.3,0.001]
[1753151052026,8.53402402,3782.4,3782.3,0.001]
[1753151057710,8.53402402,3782.4,3782.3,0.001]
[1753151060640,11.53402402,3782.4,3782.3,0.001]
[1753151062164,11.08412402,3782.4,3782.3,0.001]
[1753151062667,2.64382402,3782.4,3782.3,0.001]
[1753151062975,4.112,3782.4,3782.3,0.001]
[1753151063248,4.113,3782.4,3782.3,1.1974]
[1753151063748,4.113,3782.5,3782.3,1.1974]
[1753151064072,2.64341672,3783.0,3782.3,1.1974]
[1753151064073,0.132,3783.4,3782.7,2.64355547]
[1753151064210,0.132,3783.4,3782.8,1.0644]
[1753151064211,4.113,3783.3,3782.8,1.0644]
[1753151064411,0.01971921,3783.2,3783.0,0.132]
[1753151064736,0.132,3783.6,3783.0,0.132]
[1753151064737,0.15171921,3783.6,3783.1,0.4293]
[1753151065048,0.01971921,3783.6,3783.2,0.4293]
[1753151065235,0.01971921,3783.7,3783.5,0.132]
[1753151065434,0.01971921,3783.7,3783.5,0.5613]
[1753151065735,0.01971921,3783.7,3782.8,0.6351]
[1753151065736,2.64307363,3783.5,3782.8,1.0644]
[1753151065935,0.01971921,3783.4,3782.8,1.0644]
[1753151066141,4.91581921,3783.4,3783.1,0.132]
[1753151066342,2.64319509,3783.3,3783.1,0.132]
[1753151066519,4.13671921,3783.2,3783.1,0.132]
[1753151067454,0.01971921,3783.2,3783.1,0.132]
[1753151067654,0.01971921,3783.5,3783.1,0.5613]
[1753151067977,4.115,3783.4,3783.2,1.0644]
[1753151068123,4.115,3783.4,3783.3,0.4293]
[1753151068324,4.115,3783.4,3783.3,0.5613]
[1753151068724,0.01971921,3783.7,3783.3,0.5613]
[1753151068944,4.117,3783.6,3783.4,0.4293]
[1753151069124,4.067,3783.6,3783.2,0.6351]
[1753151069327,4.067,3783.6,3783.5,0.132]
[1753151069736,4.08671921,3783.6,3783.5,0.132]
[1753151070255,4.067,3783.6,3783.5,0.132]
[1753151071151,4.067,3783.6,3783.5,0.5613]
[1753151071456,0.19985143,3784.0,3783.5,0.94526623]
[1753151071661,0.15171921,3784.2,3783.6,0.4293]
[1753151071862,4.13371921,3784.1,3783.9,0.132]
[1753151072953,14.5,3784.0,3783.9,0.132]
[1753151073259,14.5,3784.0,3783.2,0.6351]
[1753151073460,2.64298114,3783.7,3783.6,0.132]
[1753151073766,2.64310345,3783.5,3783.2,0.132]
[1753151073945,0.01971921,3783.4,3783.2,0.132]
[1753151074144,14.51971921,3783.4,3783.2,0.132]
[1753151074357,0.01971921,3783.3,3783.2,0.132]
[1753151075249,0.01971921,3783.3,3782.4,0.6351]
[1753151075250,4.13371921,3783.3,3782.4,0.6351]
[1753151075572,0.132,3783.2,3782.5,0.132]
[1753151075877,2.64359574,3782.8,3782.5,0.132]
[1753151076081,0.01971921,3782.7,3782.5,0.132]
[1753151076483,2.66333464,3782.7,3782.5,0.132]
[1753151076681,0.01971921,3782.7,3782.5,0.132]
[1753151076884,14.5,3782.6,3782.5,0.132]
[1753151077272,17.14368423,3782.6,3782.5,0.132]
[1753151077475,14.5,3782.6,3782.5,0.132]
[1753151077689,17.14368423,3782.6,3782.5,0.132]
[1753151078009,18.613,3782.6,3782.5,0.132]
[1753151079992,21.25668423,3782.6,3782.5,0.132]
[1753151080567,2.64382402,3782.4,3782.1,0.001]
[1753151080767,7.59294323,3782.4,3782.1,0.001]
[1753151080968,7.57322402,3782.4,3782.1,0.001]
[1753151081163,8.58472402,3782.4,3782.1,0.001]
[1753151083695,23.08472402,3782.4,3782.1,0.001]
[1753151084474,26.08472402,3782.4,3782.1,0.001]
[1753151088819,3.96376383,3782.2,3782.1,1e-08]
[1753151089020,8.08848304,3782.2,3782.1,1e-08]
[1753151089330,8.49906383,3782.2,3782.1,1e-08]
[1753151089497,22.99906383,3782.2,3782.1,1e-08]
[1753151090584,25.99906383,3782.2,3782.1,1e-08]
[1753151091599,26.19912886,3782.2,3782.1,1e-08]
[1753151091792,4.01364286,3780.8,3780.7,0.001]
[1753151091994,8.11664286,3780.8,3780.7,0.001]
[1753151092194,8.54694286,3780.8,3780.7,0.001]
[1753151092399,23.04694286,3780.8,3780.7,0.001]
[1753151094120,26.04694286,3780.8,3780.7,0.001]
[1753151098921,25.06364286,3780.8,3780.7,0.001]
[1753151099431,21.51364286,3780.8,3780.7,0.001]
[1753151099636,20.14494286,3780.8,3780.7,0.001]
[1753151099834,17.14494286,3780.8,3780.7,0.001]
[1753151100037,21.24494286,3780.8,3780.7,0.001]
[1753151100203,14.5,3780.8,3780.7,0.001]
[1753151100407,14.5,3780.8,3780.7,1.1067]
[1753151100939,21.24494286,3780.8,3780.7,0.001]
[1753151101140,22.22524286,3780.8,3780.7,0.001]
[1753151103305,17.69494286,3780.8,3780.7,0.001]
[1753151103534,21.79994286,3780.8,3780.7,0.001]
[1753151104254,14.5,3780.8,3780.7,0.6361]
[1753151104454,2.64383168,3782.4,3780.7,0.6361]
[1753151104455,2.64427879,3781.8,3780.9,2.6448365]
[1753151104749,4.12871921,3781.7,3781.0,1.1057]
[1753151104949,14.5,3781.6,3781.0,1.1057]
[1753151105154,0.01971921,3781.5,3781.1,0.4706]
[1753151105446,4.11,3781.4,3781.2,0.4706]
[1753151105851,14.5,3781.3,3781.0,3.2798936]
[1753151106055,0.01971921,3781.2,3781.0,0.6351]
[1753151106558,2.64418521,3781.9,3781.1,3.11532778]
[1753151106851,4.12971921,3781.8,3781.2,0.4706]
[1753151107052,6.7543724,3781.7,3781.3,0.6351]
[1753151107217,14.5,3781.8,3781.4,0.4706]
[1753151107424,18.61,3781.8,3781.6,2.64435915]
[1753151107650,14.5,3781.8,3781.7,0.4706]
[1753151107851,14.5,3781.8,3781.7,1.1057]
[1753151108072,14.5,3781.8,3781.7,3.7500134]
[1753151108259,14.5,3781.8,3781.7,1.1057]
[1753151110122,4.108,3782.3,3781.8,0.6351]
[1753151110318,4.12771921,3782.3,3781.9,0.4706]
[1753151110617,14.5,3782.2,3781.9,0.4706]
[1753151110960,0.01971921,3782.1,3782.0,0.132]
[1753151111259,0.01971921,3782.1,3782.0,0.6026]
[1753151111623,14.5,3782.2,3782.0,0.6026]
[1753151111876,14.5,3782.2,3782.1,0.4706]
[1753151113186,17.14396383,3782.2,3782.0,0.132]
[1753151113359,0.01971921,3782.1,3782.0,0.132]
[1753151113679,0.01971921,3782.1,3782.0,0.6026]
[1753151115081,2.64403373,3782.1,3782.0,0.132]
[1753151115306,17.16375294,3782.1,3782.0,0.132]
[1753151115591,2.64427308,3781.8,3781.4,1.2377]
[1753151115777,2.64440338,3781.6,3781.4,1.2377]
[1753151116084,2.64453895,3781.4,3781.0,0.4706]
[1753151116294,0.01971921,3781.3,3781.1,0.132]
[1753151116585,0.01971921,3781.8,3781.2,0.4706]
[1753151116775,0.01971921,3781.8,3781.3,0.132]
[1753151117174,0.01971921,3781.8,3781.4,0.4291]
[1753151117776,0.01971921,3781.8,3781.5,0.4291]
[1753151117977,0.01971921,3781.8,3781.6,0.4291]
[1753151118988,0.01971921,3781.8,3781.2,3.07375275]
[1753151119294,0.01971921,3781.8,3781.6,0.5611]
[1753151119681,2.66397278,3781.8,3781.6,0.5611]
[1753151119878,0.01971921,3781.8,3781.6,0.5611]
[1753151120284,14.5,3781.7,3781.6,0.132]
[1753151120952,14.5,3781.7,3781.6,0.5611]
[1753151121155,14.5,3781.7,3781.6,0.132]
[1753151121792,2.64458067,3781.4,3781.0,0.6351]
[1753151121990,2.64438332,3781.6,3781.0,0.6351]
[1753151121991,2.64438332,3781.6,3781.3,0.132]
[1753151122154,2.64445947,3781.5,3781.3,0.132]
[1753151122593,2.64438433,3781.6,3781.3,0.132]
[1753151122794,21.24231886,3781.7,3781.3,0.132]
[1753151123163,21.24237674,3781.7,3781.3,0.5611]
[1753151123492,2.6444029,3781.6,3781.3,0.5611]
[1753151123696,21.24232587,3781.7,3781.3,0.132]
[1753151123900,0.01971921,3781.6,3781.3,0.132]
[1753151124197,0.01971921,3781.6,3781.3,0.5611]
[1753151124400,0.01971921,3781.6,3781.3,0.132]
[1753151124598,14.5,3781.7,3781.4,0.4291]
[1753151124774,0.132,3782.0,3781.5,0.4291]
[1753151124974,0.002,3782.2,3781.6,0.7671]
[1753151125175,0.002,3782.2,3781.9,0.132]
[1753151125390,0.02171921,3782.2,3781.9,0.132]
[1753151125591,0.02171921,3782.2,3781.9,0.5611]
[1753151125977,2.6656935,3782.2,3781.9,0.5611]
[1753151126181,0.02171921,3782.2,3781.9,0.5611]
[1753151126382,0.002,3782.2,3781.9,0.5611]
[1753151126564,0.02171921,3782.2,3781.9,0.132]
[1753151126769,14.5,3782.1,3782.0,0.4291]
[1753151127170,0.002,3782.2,3782.0,0.4291]
[1753151127911,0.002,3782.2,3781.9,0.132]
[1753151128202,2.66569379,3782.2,3781.9,0.132]
[1753151128503,0.02171921,3782.2,3781.9,0.132]
[1753151128808,14.5,3782.1,3781.9,0.132]
[1753151129010,0.01971921,3782.0,3781.9,0.132]
[1753151129209,0.01971921,3782.0,3781.9,0.5611]
[1753151129587,0.002,3782.2,3781.9,0.5611]
[1753151129787,0.002,3782.2,3782.0,0.4291]
[1753151129983,0.002,3782.2,3782.1,0.6351]
[1753151130189,0.002,3782.2,3782.1,7.52957406]
[1753151130512,0.002,3782.2,3782.1,7.93223373]
[1753151135291,0.002,3782.2,3782.1,3.84023373]
[1753151135515,0.002,3782.2,3782.1,7.92923373]
[1753151135721,0.002,3782.2,3782.1,1.1962]
[1753151135918,0.002,3782.2,3782.1,5.2852]
[1753151136117,0.002,3782.2,3782.1,7.92923373]
[1753151136483,0.002,3782.2,3782.1,3.84023373]
[1753151136685,0.002,3782.2,3782.1,7.92923373]
[1753151137299,0.002,3782.2,3782.1,8.98657209]
[1753151141920,0.002,3782.2,3782.1,4.89757209]
[1753151142120,0.002,3782.2,3782.1,8.98657209]
[1753151144398,0.002,3782.2,3782.1,4.89757209]
[1753151144599,0.002,3782.2,3782.1,8.98557209]
[1753151146023,0.002,3782.2,3782.1,4.89757209]
[1753151146225,0.002,3782.2,3782.1,8.98557209]
[1753151150133,0.002,3782.2,3782.1,4.89757209]
[1753151150440,0.002,3782.2,3782.1,8.98557209]
[1753151150807,0.002,3782.2,3782.1,4.89757209]
[1753151151003,0.002,3782.2,3782.1,0.132]
[1753151151209,0.4537,3782.2,3782.1,4.22]
[1753151151411,0.4537,3782.2,3782.1,4.088]
[1753151153209,3.09766383,3782.2,3782.1,4.088]
[1753151153410,0.4537,3782.2,3782.1,4.088]
[1753151153933,0.47341921,3782.2,3782.1,4.088]
[1753151154143,0.4537,3782.2,3782.1,4.088]
[1753151155045,0.4537,3782.2,3782.0,4.22]
[1753151155335,0.4537,3782.2,3782.0,0.132]
[1753151155541,0.4537,3782.2,3782.1,4.088]
[1753151156437,0.4537,3782.2,3782.0,0.132]
[1753151156638,0.002,3782.2,3782.1,4.088]
[1753151157335,0.4537,3782.2,3782.1,4.088]
[1753151157730,0.002,3782.2,3782.1,4.088]
[1753151158459,0.002,3782.2,3782.1,6.73303373]
[1753151158754,0.002,3782.2,3782.1,8.29785602]
[1753151160145,0.002,3782.2,3782.1,8.93295602]
[1753151160707,0.002,3782.2,3782.1,4.84495602]
[1753151160910,0.002,3782.2,3782.1,8.93295602]
[1753151161341,0.002,3782.2,3782.1,4.84495602]
[1753151161548,0.002,3782.2,3782.1,4.41335602]
[1753151161846,0.002,3782.2,3782.1,8.50135602]
[1753151162942,0.002,3782.2,3782.1,0.133]
[1753151163153,0.4537,3782.2,3782.1,4.221]
[1753151163514,0.002,3782.2,3782.1,4.221]
[1753151163916,0.002,3782.2,3782.1,6.86503373]
[1753151164840,0.002,3782.2,3782.1,7.29663373]
[1753151165041,0.002,3782.2,3782.1,8.29071364]
[1753151165234,0.002,3782.2,3782.1,7.85911364]
[1753151165430,0.002,3782.2,3782.1,8.49421364]
[1753151165631,0.002,3782.2,3782.1,8.92581364]
[1753151167448,0.002,3782.2,3782.1,11.92581364]
[1753151167866,0.002,3782.2,3782.1,12.47581364]
[1753151168250,0.002,3783.0,3782.9,3.27857458]
[1753151168567,0.002,3783.0,3782.9,19.17941954]
[1753151168938,0.002,3783.0,3782.9,19.74301954]
[1753151169166,0.002,3783.0,3782.9,20.29301954]
[1753151170549,0.002,3783.0,3782.9,15.65501954]
[1753151170864,0.002,3783.0,3782.9,11.25703204]
[1753151171357,0.002,3783.0,3782.9,6.73843204]
[1753151171562,0.002,3783.0,3782.9,3.10333204]
[1753151171950,0.002,3783.0,3782.9,6.86247458]
[1753151172374,0.4537,3783.0,3782.9,0.132]
[1753151172554,0.4537,3783.0,3782.9,4.219]
[1753151173561,0.4537,3783.0,3782.9,0.132]
[1753151177876,0.47341921,3783.0,3782.9,0.132]
[1753151178775,0.4537,3783.0,3782.9,0.132]
[1753151179642,0.47341921,3783.0,3782.9,0.132]
[1753151180052,0.4537,3783.0,3782.9,0.132]
[1753151180552,0.4537,3783.0,3782.9,2.77547458]
[1753151180746,0.002,3783.0,3782.9,0.132]
[1753151181691,0.4677,3783.0,3782.9,0.132]
[1753151182351,0.002,3783.0,3782.9,2.77547458]
[1753151182692,0.002,3783.0,3782.9,0.132]
[1753151182903,0.002,3783.0,3782.9,2.77547458]
[1753151183235,0.002,3783.0,3782.9,3.72608213]
[1753151183969,0.002,3783.0,3782.9,4.20571687]
[1753151184278,0.002,3783.0,3782.9,4.81438213]
[1753151184576,0.002,3783.0,3782.9,4.84081687]
[1753151190479,0.002,3783.0,3782.9,7.84081687]
[1753151190679,0.002,3783.0,3782.9,7.81438213]
[1753151192690,3.02162367,3783.7,3783.0,2.64339803]
[1753151192983,0.4657,3783.7,3783.6,0.132]
[1753151193321,0.4657,3783.7,3783.6,4.217]
[1753151193630,0.4657,3783.7,3783.1,0.132]
[1753151193631,2.64325392,3783.3,3783.1,0.132]
[1753151193795,3.89538417,3783.2,3783.1,0.132]
[1753151194400,18.39538417,3783.2,3783.1,0.132]
[1753151194601,2.64354446,3782.8,3782.7,4.217]
[1753151194821,0.81471921,3782.8,3782.7,0.132]
[1753151195022,1.28041921,3782.8,3782.7,0.132]
[1753151195186,3.92396367,3782.8,3782.7,0.132]
[1753151195989,1.28041921,3782.8,3782.7,0.132]
[1753151196188,0.795,3782.8,3782.7,0.132]
[1753151196500,0.79721921,3783.1,3782.7,0.132]
[1753151196699,0.4657,3783.0,3782.5,4.085]
[1753151196902,0.4657,3783.0,3782.6,0.6728821]
[1753151197221,2.6434086,3783.0,3782.9,0.132]
[1753151197588,2.64365833,3782.7,3782.6,4.085]
[1753151197787,0.4657,3782.7,3782.6,4.085]
[1753151198123,3.10931434,3782.7,3782.6,4.217]
[1753151198331,0.4657,3782.7,3782.6,0.132]
[1753151199129,0.01971921,3783.0,3782.6,0.132]
[1753151199331,0.48541921,3783.0,3782.6,0.81808786]
[1753151199739,0.01971921,3783.0,3782.6,0.81808786]
[1753151199919,2.64312637,3783.4,3782.7,4.5382]
[1753151200238,0.01971921,3783.6,3783.0,2.64340175]
[1753151200405,0.01971921,3783.6,3783.1,4.36254018]
[1753151200607,0.8345,3783.8,3783.5,0.132]
[1753151200908,0.8345,3783.8,3783.7,0.132]
[1753151200909,0.002,3783.8,3783.7,0.132]
[1753151201120,0.48741921,3783.8,3783.7,0.132]
[1753151201404,3.13026502,3783.8,3783.7,0.132]
[1753151201727,3.47547877,3783.7,3783.5,0.132]
[1753151201916,0.01971921,3783.6,3783.5,0.132]
[1753151202117,0.48541921,3783.6,3783.5,0.132]
[1753151202331,0.8325,3783.7,3783.5,0.132]
[1753151202845,2.64298551,3783.6,3783.5,0.132]
[1753151203009,0.48541921,3783.6,3783.5,0.132]
[1753151203737,3.10868551,3783.6,3783.5,0.132]
[1753151204126,0.4657,3783.6,3783.5,0.132]
[1753151204530,0.48541921,3783.6,3783.5,0.132]
[1753151204715,14.98541921,3783.6,3783.5,0.132]
[1753151204919,14.9657,3783.6,3783.5,0.132]
[1753151205121,17.60868551,3783.6,3783.5,0.132]
[1753151205951,2.64315998,3783.4,3782.7,3.0]
[1753151206148,3.12861591,3783.3,3783.2,0.132]
[1753151206339,0.48541921,3783.3,3783.2,0.132]
[1753151207552,0.01971921,3783.3,3783.2,0.132]
[1753151207738,14.5,3783.6,3783.2,0.132]
[1753151208254,14.5,3783.6,3782.9,6.72741564]
[1753151208423,14.5,3783.6,3783.4,0.132]
[1753151208950,2.64485078,3783.8,3783.4,0.132]
[1753151209154,2.66264135,3783.7,3783.4,0.132]
[1753151209350,3.11024135,3783.7,3783.6,0.132]
[1753151209655,0.46731921,3783.7,3783.6,0.132]
[1753151211166,0.002,3783.8,3783.6,0.132]
[1753151211452,2.64490607,3783.8,3783.6,0.132]
[1753151211655,0.002,3783.8,3783.6,0.132]
[1753151212453,0.002,3783.8,3783.6,0.81791735]
[1753151213157,0.002,3783.8,3783.6,0.132]
[1753151214923,3.09244653,3783.8,3783.6,0.132]
[1753151215124,0.4496,3783.8,3783.6,0.132]
[1753151218359,14.9496,3783.8,3783.6,0.132]
[1753151218861,14.502,3783.8,3783.6,0.132]
[1753151222265,3.11023487,3783.7,3783.6,0.132]
[1753151222465,2.64299694,3783.6,3783.3,4.082]
[1753151222668,0.46731921,3783.5,3783.4,0.132]
[1753151223342,4.90281921,3783.7,3783.4,0.132]
[1753151223736,7.54576341,3783.7,3783.4,0.132]
[1753151223969,2.64298687,3783.6,3783.4,0.132]
[1753151224353,7.9736298,3783.7,3783.4,0.132]
[1753151225580,2.6429945,3783.6,3783.4,0.132]
[1753151225788,0.01971921,3783.6,3783.4,0.132]
[1753151226089,0.8011,3783.7,3783.4,0.132]
[1753151226236,0.002,3783.8,3783.4,0.132]
[1753151226440,0.002,3783.8,3783.5,2.64299771]
[1753151226745,0.002,3783.8,3783.6,3.5125483]
[1753151227066,0.002,3783.8,3783.6,0.86959977]
[1753151227251,0.002,3783.8,3783.6,0.39629977]
[1753151227575,0.002,3783.8,3783.6,0.86959977]
[1753151228069,0.002,3783.8,3783.7,3.11621566]
[1753151228392,0.002,3783.8,3783.7,4.42866303]
[1753151228678,0.002,3783.8,3783.7,5.06376303]
[1753151229272,0.002,3783.8,3783.7,1.94754737]
[1753151229473,0.002,3783.8,3783.7,1.31244737]
[1753151229838,0.002,3783.8,3783.6,0.39629977]
[1753151229839,0.4496,3783.8,3783.6,4.214]
[1753151230042,0.46731921,3783.7,3783.6,4.214]
[1753151230442,0.46731921,3783.7,3782.6,3.6351]
[1753151230646,0.46731921,3783.7,3783.4,0.132]
[1753151230845,0.46731921,3783.7,3783.0,4.081]
[1753151230846,2.6432795,3783.2,3783.0,4.081]
[1753151231076,0.01971921,3783.1,3783.0,4.081]
[1753151231284,14.9476,3783.1,3783.0,4.081]
[1753151231792,2.6432035,3783.3,3782.9,0.132]
[1753151232001,0.4476,3783.1,3782.9,0.132]
[1753151232297,0.46731921,3783.1,3782.9,0.132]
[1753151232448,0.01971921,3783.0,3782.9,0.132]
[1753151232783,3.11072391,3783.0,3782.9,0.132]
[1753151233080,1.29631921,3783.0,3782.9,0.132]
[1753151234368,0.01971921,3783.0,3782.9,0.132]
[1753151234684,0.01971921,3783.1,3782.9,0.132]
[1753151235044,14.5,3783.2,3782.9,0.132]
[1753151235351,14.9476,3783.2,3782.9,0.132]
[1753151235551,0.01971921,3783.1,3782.9,0.132]
[1753151235746,0.4476,3783.0,3782.9,0.132]
[1753151236352,14.5,3783.2,3782.9,0.132]
[1753151236961,0.01971921,3783.1,3782.9,0.132]
[1753151237156,0.47721921,3783.1,3782.9,0.132]
[1753151237384,0.01971921,3783.1,3782.9,0.132]
[1753151238087,4.081,3783.6,3782.9,0.132]
[1753151238260,4.081,3783.6,3783.5,0.132]
[1753151238660,14.5,3783.6,3783.5,0.132]
[1753151239975,14.9575,3783.6,3783.5,0.132]
[1753151240180,17.60048551,3783.6,3783.5,0.132]
[1753151240786,2.64328439,3783.2,3783.0,0.132]
[1753151241094,0.01971921,3783.1,3783.0,0.132]
[1753151241384,0.47721921,3783.1,3783.0,0.132]
[1753151241687,3.12055404,3783.1,3783.0,0.132]
[1753151241890,3.90305404,3783.1,3783.0,0.132]
[1753151242101,18.40305404,3783.1,3783.0,0.132]
[1753151242294,18.38333483,3783.1,3783.0,0.132]
[1753151243163,2.64352945,3782.9,3782.7,0.133]
[1753151243404,4.5385,3783.0,3782.7,0.133]
[1753151243739,14.5,3782.9,3782.7,0.133]
[1753151244816,0.01971921,3782.8,3782.7,0.133]
[1753151245601,0.47721921,3782.8,3782.7,0.133]
[1753151246043,0.01971921,3782.8,3782.7,0.133]
[1753151247051,2.66319781,3782.9,3782.7,0.133]
[1753151247346,14.5,3782.8,3782.7,0.133]
[1753151248754,14.9575,3782.8,3782.7,0.133]
[1753151249256,14.5,3782.8,3782.7,0.133]
[1753151249557,17.60104446,3782.8,3782.7,0.133]
[1753151250722,17.60104446,3782.8,3782.7,0.001]
[1753151251250,18.42274446,3782.8,3782.7,0.001]
[1753151254666,21.42274446,3782.8,3782.7,0.001]
[1753151254861,21.97274446,3782.8,3782.7,0.001]
[1753151257124,22.17265935,3782.8,3782.7,0.001]
[1753151261838,18.3217,3782.8,3782.7,0.001]